[Event "Titled Tuesday Blitz December 06 Early 2022"]
[White "Molina, Roberto Junio Brito"]
[Black "Paravyan, David"]
[WhiteFideId "2109450"]
[BlackFideId "4194985"]
[WhiteElo "2376"]
[BlackElo "2551"]
[Result "0-1"]
[Round "03"]
[TimeControl "180+1"]
[Date "2022.12.06"]
[WhiteClock "0:00:26"]
[BlackClock "0:01:17"]

1. d4 {[%clk 0:03:00]}  Nf6 {[%clk 0:02:59]} 2. c4 {[%clk 0:02:58]}  g6 {[%clk 0:03:00]} 3. Nc3 {[%clk 0:02:55]}  d5 {[%clk 0:02:59]} 4. Nf3 {[%clk 0:02:54]}  Bg7 {[%clk 0:02:57]} 5. Qb3 {[%clk 0:02:52]}  c6 {[%clk 0:02:57]} 6. cxd5 {[%clk 0:02:50]}  Nxd5 {[%clk 0:02:58]} 7. e4 {[%clk 0:02:50]}  Nxc3 {[%clk 0:02:52]} 8. bxc3 {[%clk 0:02:50]}  O-O {[%clk 0:02:51]} 9. Be3 {[%clk 0:02:47]}  c5 {[%clk 0:02:51]} 10. Rd1 {[%clk 0:02:42]}  cxd4 {[%clk 0:02:48]} 11. cxd4 {[%clk 0:02:42]}  Qa5+ {[%clk 0:02:42]} 12. Bd2 {[%clk 0:02:42]}  Qb6 {[%clk 0:02:42]} 13. Bc4 {[%clk 0:02:33]}  Nc6 {[%clk 0:02:39]} 14. O-O {[%clk 0:02:31]}  Qxb3 {[%clk 0:02:37]} 15. Bxb3 {[%clk 0:02:30]}  Nxd4 {[%clk 0:02:23]} 16. Nxd4 {[%clk 0:02:29]}  Bxd4 {[%clk 0:02:24]} 17. Bb4 {[%clk 0:02:30]}  Bf6 {[%clk 0:02:20]} 18. f4 {[%clk 0:02:27]}  a5 {[%clk 0:02:17]} 19. Ba3 {[%clk 0:02:23]}  Bg4 {[%clk 0:02:04]} 20. Rd2 {[%clk 0:02:19]}  Bc3 {[%clk 0:01:59]} 21. Rd3 {[%clk 0:02:13]}  Bb4 {[%clk 0:01:55]} 22. Bxb4 {[%clk 0:02:13]}  axb4 {[%clk 0:01:56]} 23. Rd4 {[%clk 0:02:12]}  Be6 {[%clk 0:01:43]} 24. Bxe6 {[%clk 0:01:39]}  fxe6 {[%clk 0:01:44]} 25. Rxb4 {[%clk 0:01:39]}  Rxa2 {[%clk 0:01:42]} 26. Rxb7 {[%clk 0:01:38]}  Rc8 {[%clk 0:01:42]} 27. Kh1 {[%clk 0:01:14]}  Rcc2 {[%clk 0:01:37]} 28. Rg1 {[%clk 0:01:14]}  Kf7 {[%clk 0:01:36]} 29. h3 {[%clk 0:01:13]}  Rf2 {[%clk 0:01:34]} 30. Rc1 {[%clk 0:00:57]}  Rxf4 {[%clk 0:01:28]} 31. Rcc7 {[%clk 0:00:57]}  Rxe4 {[%clk 0:01:19]} 32. Rxe7+ {[%clk 0:00:57]}  Kf6 {[%clk 0:01:20]} 33. Rxh7 {[%clk 0:00:49]}  Re1+ {[%clk 0:01:17]} 34. Kh2 {[%clk 0:00:49]}  Ree2 {[%clk 0:01:18]} 35. Rbf7+ {[%clk 0:00:48]}  Ke5 {[%clk 0:01:15]} 36. Kg3 {[%clk 0:00:26]}  Rxg2+ {[%clk 0:01:15]} 37. Kf3 {[%clk 0:00:26]}  Raf2+ {[%clk 0:01:15]} 38. Ke3 {[%clk 0:00:27]}  Rxf7 {[%clk 0:01:16]} 39. Rxf7 {[%clk 0:00:26]}  Rg3+ {[%clk 0:01:17]} 0-1


[Site "https://www.chess.com"]

[Event "Titled Tuesday Blitz December 06 Early 2022"]
[White "Movahed, Sina"]
[Black "Harikrishna, Pentala"]
[WhiteFideId "42520835"]
[BlackFideId "5007003"]
[WhiteElo "2225"]
[BlackElo "2617"]
[Result "1/2-1/2"]
[Round "03"]
[TimeControl "180+1"]
[Date "2022.12.06"]
[WhiteClock "0:00:51"]
[BlackClock "0:00:16"]

1. e4 {[%clk 0:03:00]}  c5 {[%clk 0:02:59]} 2. Nf3 {[%clk 0:03:01]}  e6 {[%clk 0:02:59]} 3. b3 {[%clk 0:03:00]}  a6 {[%clk 0:02:59]} 4. Bb2 {[%clk 0:02:59]}  Nc6 {[%clk 0:02:59]} 5. c4 {[%clk 0:02:59]}  Nf6 {[%clk 0:02:58]} 6. e5 {[%clk 0:02:59]}  Ng4 {[%clk 0:02:58]} 7. h3 {[%clk 0:02:58]}  Nh6 {[%clk 0:02:58]} 8. Bd3 {[%clk 0:02:58]}  b6 {[%clk 0:02:35]} 9. Be4 {[%clk 0:02:57]}  Bb7 {[%clk 0:02:35]} 10. O-O {[%clk 0:02:58]}  Qc7 {[%clk 0:02:30]} 11. Re1 {[%clk 0:02:57]}  Be7 {[%clk 0:02:29]} 12. Nc3 {[%clk 0:02:55]}  Nb4 {[%clk 0:02:24]} 13. Bb1 {[%clk 0:02:50]}  Nc6 {[%clk 0:02:08]} 14. Nd5 {[%clk 0:02:35]}  Qd8 {[%clk 0:02:03]} 15. Nxe7 {[%clk 0:02:34]}  Qxe7 {[%clk 0:02:04]} 16. d4 {[%clk 0:02:33]}  cxd4 {[%clk 0:02:02]} 17. Nxd4 {[%clk 0:02:29]}  Nxd4 {[%clk 0:01:59]} 18. Qxd4 {[%clk 0:02:29]}  Qg5 {[%clk 0:01:41]} 19. Be4 {[%clk 0:02:22]}  Bxe4 {[%clk 0:01:13]} 20. Qxe4 {[%clk 0:02:23]}  O-O {[%clk 0:01:09]} 21. Rad1 {[%clk 0:02:23]}  Ra7 {[%clk 0:01:00]} 22. Bd4 {[%clk 0:02:22]}  Rb8 {[%clk 0:00:58]} 23. Be3 {[%clk 0:02:16]}  Qg6 {[%clk 0:00:57]} 24. Qxg6 {[%clk 0:02:02]}  hxg6 {[%clk 0:00:58]} 25. g4 {[%clk 0:02:01]}  Kf8 {[%clk 0:00:57]} 26. Rd6 {[%clk 0:02:00]}  Rab7 {[%clk 0:00:55]} 27. Red1 {[%clk 0:02:00]}  Ke8 {[%clk 0:00:54]} 28. c5 {[%clk 0:01:58]}  bxc5 {[%clk 0:00:53]} 29. Rxa6 {[%clk 0:01:57]}  Rc8 {[%clk 0:00:46]} 30. Rc1 {[%clk 0:01:56]}  Rbc7 {[%clk 0:00:46]} 31. Ra5 {[%clk 0:01:56]}  c4 {[%clk 0:00:44]} 32. Rxc4 {[%clk 0:01:54]}  Rxc4 {[%clk 0:00:44]} 33. bxc4 {[%clk 0:01:54]}  Ng8 {[%clk 0:00:44]} 34. Bc5 {[%clk 0:01:48]}  g5 {[%clk 0:00:42]} 35. Bd6 {[%clk 0:01:46]}  f6 {[%clk 0:00:42]} 36. Kg2 {[%clk 0:01:42]}  Nh6 {[%clk 0:00:40]} 37. Kf3 {[%clk 0:01:36]}  Rxc4 {[%clk 0:00:36]} 38. Ra8+ {[%clk 0:01:32]}  Kf7 {[%clk 0:00:36]} 39. Rd8 {[%clk 0:01:33]}  Rc3+ {[%clk 0:00:31]} 40. Kg2 {[%clk 0:01:32]}  Kg6 {[%clk 0:00:24]} 41. Rxd7 {[%clk 0:01:29]}  f5 {[%clk 0:00:22]} 42. Bf8 {[%clk 0:01:22]}  fxg4 {[%clk 0:00:21]} 43. Rxg7+ {[%clk 0:01:18]}  Kf5 {[%clk 0:00:21]} 44. hxg4+ {[%clk 0:01:13]}  Nxg4 {[%clk 0:00:21]} 45. Rf7+ {[%clk 0:01:13]}  Kg6 {[%clk 0:00:20]} 46. Re7 {[%clk 0:01:12]}  Rc2 {[%clk 0:00:20]} 47. Kg3 {[%clk 0:01:08]}  Nxe5 {[%clk 0:00:20]} 48. Rxe6+ {[%clk 0:01:07]}  Kf5 {[%clk 0:00:20]} 49. Ra6 {[%clk 0:01:07]}  Rc3+ {[%clk 0:00:19]} 50. Kg2 {[%clk 0:01:07]}  Nd3 {[%clk 0:00:18]} 51. Ra5+ {[%clk 0:01:06]}  Kg4 {[%clk 0:00:18]} 52. Bd6 {[%clk 0:01:02]}  Nf4+ {[%clk 0:00:17]} 53. Bxf4 {[%clk 0:01:02]}  gxf4 {[%clk 0:00:18]} 54. Kf1 {[%clk 0:01:00]}  Kf3 {[%clk 0:00:17]} 55. Ke1 {[%clk 0:01:00]}  Rc1+ {[%clk 0:00:17]} 56. Kd2 {[%clk 0:00:59]}  Rf1 {[%clk 0:00:18]} 57. a4 {[%clk 0:00:51]}  Rxf2+ {[%clk 0:00:17]} 58. Kc3 {[%clk 0:00:52]}  Ra2 {[%clk 0:00:17]} 59. Kb3 {[%clk 0:00:52]}  Ra1 {[%clk 0:00:17]} 60. Rf5 {[%clk 0:00:49]}  Ke3 {[%clk 0:00:15]} 61. a5 {[%clk 0:00:49]}  f3 {[%clk 0:00:16]} 62. Kb4 {[%clk 0:00:49]}  f2 {[%clk 0:00:16]} 63. Kb5 {[%clk 0:00:49]}  f1=Q+ {[%clk 0:00:14]} 64. Rxf1 {[%clk 0:00:49]}  Rxf1 {[%clk 0:00:13]} 65. a6 {[%clk 0:00:49]}  Rb1+ {[%clk 0:00:12]} 66. Kc6 {[%clk 0:00:49]}  Rc1+ {[%clk 0:00:12]} 67. Kb7 {[%clk 0:00:49]}  Rb1+ {[%clk 0:00:13]} 68. Kc7 {[%clk 0:00:49]}  Rc1+ {[%clk 0:00:13]} 69. Kb7 {[%clk 0:00:50]}  Rb1+ {[%clk 0:00:13]} 70. Kc7 {[%clk 0:00:50]}  Ra1 {[%clk 0:00:14]} 71. Kb7 {[%clk 0:00:50]}  Kd4 {[%clk 0:00:14]} 72. a7 {[%clk 0:00:51]}  Kc5 {[%clk 0:00:15]} 73. a8=Q {[%clk 0:00:50]}  Rxa8 {[%clk 0:00:16]} 74. Kxa8 {[%clk 0:00:51]} 1/2-1/2


[Site "https://www.chess.com"]

[Event "Titled Tuesday Blitz December 06 Early 2022"]
[White "Osiecki, Stanislaw"]
[Black "Begunov, Konstantin"]
[WhiteFideId "1102990"]
[BlackFideId "4118510"]
[WhiteElo "2088"]
[BlackElo "2141"]
[Result "1-0"]
[Round "03"]
[TimeControl "180+1"]
[Date "2022.12.07"]
[WhiteClock "0:01:37"]
[BlackClock "0:00:34"]

1. e4 {[%clk 0:02:58]}  c5 {[%clk 0:02:59]} 2. c3 {[%clk 0:02:57]}  Nf6 {[%clk 0:02:59]} 3. e5 {[%clk 0:02:54]}  Nd5 {[%clk 0:02:59]} 4. d4 {[%clk 0:02:54]}  cxd4 {[%clk 0:03:00]} 5. Nf3 {[%clk 0:02:55]}  Nc6 {[%clk 0:03:00]} 6. cxd4 {[%clk 0:02:55]}  d6 {[%clk 0:03:00]} 7. Bc4 {[%clk 0:02:54]}  Nb6 {[%clk 0:02:59]} 8. Bb5 {[%clk 0:02:54]}  d5 {[%clk 0:03:00]} 9. h3 {[%clk 0:02:51]}  Bf5 {[%clk 0:03:00]} 10. Bd3 {[%clk 0:02:50]}  Bxd3 {[%clk 0:02:58]} 11. Qxd3 {[%clk 0:02:50]}  e6 {[%clk 0:02:59]} 12. O-O {[%clk 0:02:50]}  Be7 {[%clk 0:02:59]} 13. Nc3 {[%clk 0:02:50]}  Rc8 {[%clk 0:02:59]} 14. Be3 {[%clk 0:02:49]}  O-O {[%clk 0:02:55]} 15. Rac1 {[%clk 0:02:49]}  Nc4 {[%clk 0:02:51]} 16. Qe2 {[%clk 0:02:47]}  a6 {[%clk 0:02:44]} 17. g3 {[%clk 0:02:47]}  b5 {[%clk 0:02:40]} 18. h4 {[%clk 0:02:47]}  Qb6 {[%clk 0:02:21]} 19. h5 {[%clk 0:02:44]}  Nxe3 {[%clk 0:02:04]} 20. Qxe3 {[%clk 0:02:37]}  Na5 {[%clk 0:01:54]} 21. h6 {[%clk 0:02:36]}  g6 {[%clk 0:01:52]} 22. Qf4 {[%clk 0:02:33]}  Nc4 {[%clk 0:01:48]} 23. b3 {[%clk 0:02:32]}  Na5 {[%clk 0:01:43]} 24. Ne2 {[%clk 0:02:30]}  Qb8 {[%clk 0:01:24]} 25. Rxc8 {[%clk 0:02:27]}  Rxc8 {[%clk 0:01:21]} 26. Ng5 {[%clk 0:02:24]}  Rf8 {[%clk 0:01:14]} 27. Rc1 {[%clk 0:02:23]}  Qd8 {[%clk 0:01:09]} 28. Nf3 {[%clk 0:02:16]}  Qd7 {[%clk 0:01:06]} 29. Qd2 {[%clk 0:02:14]}  Nc6 {[%clk 0:01:01]} 30. Nh2 {[%clk 0:02:08]}  Rc8 {[%clk 0:01:00]} 31. Ng4 {[%clk 0:02:06]}  Na7 {[%clk 0:01:00]} 32. Qf4 {[%clk 0:02:02]}  Rxc1+ {[%clk 0:00:58]} 33. Nxc1 {[%clk 0:02:02]}  Qd8 {[%clk 0:00:56]} 34. Nf6+ {[%clk 0:01:57]}  Kh8 {[%clk 0:00:50]} 35. Ng4 {[%clk 0:01:50]}  Kg8 {[%clk 0:00:46]} 36. Nf6+ {[%clk 0:01:50]}  Bxf6 {[%clk 0:00:41]} 37. exf6 {[%clk 0:01:50]}  Nc6 {[%clk 0:00:40]} 38. Nd3 {[%clk 0:01:48]}  Nb8 {[%clk 0:00:37]} 39. Nc5 {[%clk 0:01:45]}  Kf8 {[%clk 0:00:34]} 40. Qxb8 {[%clk 0:01:41]}  Qxb8 {[%clk 0:00:33]} 41. Nd7+ {[%clk 0:01:41]}  Ke8 {[%clk 0:00:33]} 42. Nxb8 {[%clk 0:01:42]}  a5 {[%clk 0:00:34]} 43. Nc6 {[%clk 0:01:41]}  a4 {[%clk 0:00:34]} 44. bxa4 {[%clk 0:01:40]}  bxa4 {[%clk 0:00:35]} 45. Kf1 {[%clk 0:01:37]}  Kd7 {[%clk 0:00:35]} 46. Ne5+ {[%clk 0:01:38]}  Ke8 {[%clk 0:00:34]} 47. Ke2 {[%clk 0:01:37]} 1-0


[Site "https://www.chess.com"]

[Event "Titled Tuesday Blitz December 06 Early 2022"]
[White "Osmonbekov, Talaibek"]
[Black "Chernov, Mikhail"]
[WhiteFideId "2017253"]
[BlackFideId "24143170"]
[WhiteElo "2135"]
[BlackElo "2113"]
[Result "0-1"]
[Round "03"]
[TimeControl "180+1"]
[Date "2022.12.07"]
[WhiteClock "0:00:01"]
[BlackClock "0:00:39"]

1. d4 {[%clk 0:03:00]}  d5 {[%clk 0:03:00]} 2. Bf4 {[%clk 0:03:01]}  Nf6 {[%clk 0:02:59]} 3. Nc3 {[%clk 0:03:01]}  c6 {[%clk 0:02:52]} 4. e3 {[%clk 0:02:59]}  Bf5 {[%clk 0:02:46]} 5. f3 {[%clk 0:02:58]}  h6 {[%clk 0:02:45]} 6. g4 {[%clk 0:02:58]}  Bh7 {[%clk 0:02:45]} 7. h4 {[%clk 0:02:59]}  e6 {[%clk 0:02:37]} 8. Bd3 {[%clk 0:02:59]}  Bxd3 {[%clk 0:02:37]} 9. Qxd3 {[%clk 0:03:00]}  Nbd7 {[%clk 0:02:37]} 10. Nge2 {[%clk 0:02:58]}  Qa5 {[%clk 0:02:35]} 11. O-O-O {[%clk 0:02:58]}  b5 {[%clk 0:02:31]} 12. e4 {[%clk 0:02:38]}  Nb6 {[%clk 0:02:25]} 13. g5 {[%clk 0:02:11]}  Nh5 {[%clk 0:02:14]} 14. Bc7 {[%clk 0:02:08]}  b4 {[%clk 0:02:08]} 15. exd5 {[%clk 0:01:51]}  bxc3 {[%clk 0:02:05]} 16. dxe6 {[%clk 0:01:51]}  cxb2+ {[%clk 0:01:59]} 17. Kb1 {[%clk 0:01:50]}  Qd5 {[%clk 0:01:32]} 18. Nc3 {[%clk 0:01:40]}  Qc4 {[%clk 0:01:29]} 19. exf7+ {[%clk 0:01:23]}  Kd7 {[%clk 0:01:12]} 20. Bxb6 {[%clk 0:00:56]}  Qxd3 {[%clk 0:01:12]} 21. Rxd3 {[%clk 0:00:52]}  axb6 {[%clk 0:01:11]} 22. d5 {[%clk 0:00:35]}  c5 {[%clk 0:01:05]} 23. d6 {[%clk 0:00:33]}  Nf4 {[%clk 0:01:03]} 24. Rd2 {[%clk 0:00:32]}  hxg5 {[%clk 0:01:03]} 25. Re1 {[%clk 0:00:22]}  gxh4 {[%clk 0:00:57]} 26. Re4 {[%clk 0:00:09]}  g5 {[%clk 0:00:57]} 27. Nd5 {[%clk 0:00:09]}  Nxd5 {[%clk 0:00:56]} 28. Rxd5 {[%clk 0:00:09]}  h3 {[%clk 0:00:56]} 29. Re1 {[%clk 0:00:02]}  h2 {[%clk 0:00:55]} 30. Rh1 {[%clk 0:00:02]}  Bxd6 {[%clk 0:00:54]} 31. Rxg5 {[%clk 0:00:01]}  Raf8 {[%clk 0:00:42]} 32. Kxb2 {[%clk 0:00:01]}  Rxf7 {[%clk 0:00:41]} 33. Rg6 {[%clk 0:00:01]}  Rxf3 {[%clk 0:00:39]} 0-1


[Site "https://www.chess.com"]

[Event "Titled Tuesday Blitz December 06 Early 2022"]
[White "Paiva, Henrique M A Albergaria"]
[Black "Sharafiev, Azat"]
[WhiteFideId "1920995"]
[BlackFideId "4186214"]
[WhiteElo "1993"]
[BlackElo "2350"]
[Result "1-0"]
[Round "03"]
[TimeControl "180+1"]
[Date "2022.12.07"]
[WhiteClock "0:01:14"]
[BlackClock "0:00:24"]

1. e4 {[%clk 0:03:00]}  c5 {[%clk 0:02:59]} 2. Nf3 {[%clk 0:02:50]}  Nc6 {[%clk 0:02:59]} 3. Nc3 {[%clk 0:02:44]}  e5 {[%clk 0:02:56]} 4. Bc4 {[%clk 0:02:38]}  Be7 {[%clk 0:02:57]} 5. O-O {[%clk 0:02:36]}  Nf6 {[%clk 0:02:54]} 6. d3 {[%clk 0:02:35]}  O-O {[%clk 0:02:51]} 7. h3 {[%clk 0:02:35]}  d6 {[%clk 0:02:51]} 8. Bg5 {[%clk 0:02:33]}  Nh5 {[%clk 0:02:46]} 9. Bxe7 {[%clk 0:02:31]}  Qxe7 {[%clk 0:02:32]} 10. Nd5 {[%clk 0:02:30]}  Qd8 {[%clk 0:02:33]} 11. Nxe5 {[%clk 0:02:31]}  Nxe5 {[%clk 0:02:32]} 12. Qxh5 {[%clk 0:02:30]}  Nxc4 {[%clk 0:02:32]} 13. dxc4 {[%clk 0:02:31]}  Re8 {[%clk 0:02:31]} 14. Rfe1 {[%clk 0:02:29]}  Re5 {[%clk 0:02:31]} 15. Qf3 {[%clk 0:02:28]}  Qh4 {[%clk 0:02:29]} 16. Rad1 {[%clk 0:02:15]}  Rg5 {[%clk 0:02:14]} 17. Ne7+ {[%clk 0:02:05]}  Kf8 {[%clk 0:02:02]} 18. Nxc8 {[%clk 0:02:01]}  Rxc8 {[%clk 0:02:02]} 19. Rxd6 {[%clk 0:02:02]}  Re5 {[%clk 0:01:53]} 20. Rd7 {[%clk 0:01:55]}  Re7 {[%clk 0:01:52]} 21. Rxe7 {[%clk 0:01:51]}  Kxe7 {[%clk 0:01:12]} 22. Rd1 {[%clk 0:01:49]}  Qf6 {[%clk 0:01:03]} 23. Qg4 {[%clk 0:01:48]}  Rd8 {[%clk 0:00:59]} 24. Rxd8 {[%clk 0:01:46]}  Kxd8 {[%clk 0:00:59]} 25. c3 {[%clk 0:01:47]}  Qa6 {[%clk 0:00:48]} 26. Qg5+ {[%clk 0:01:44]}  Ke8 {[%clk 0:00:42]} 27. Qe5+ {[%clk 0:01:41]}  Kd8 {[%clk 0:00:39]} 28. Qxg7 {[%clk 0:01:28]}  Qxc4 {[%clk 0:00:39]} 29. Qf8+ {[%clk 0:01:21]}  Kd7 {[%clk 0:00:38]} 30. a3 {[%clk 0:01:12]}  Qxe4 {[%clk 0:00:35]} 31. Qxf7+ {[%clk 0:01:12]}  Kc6 {[%clk 0:00:35]} 32. Qf3 {[%clk 0:01:09]}  Qxf3 {[%clk 0:00:26]} 33. gxf3 {[%clk 0:01:09]}  Kd5 {[%clk 0:00:27]} 34. Kf1 {[%clk 0:01:10]}  Kc4 {[%clk 0:00:27]} 35. Ke2 {[%clk 0:01:10]}  Kb3 {[%clk 0:00:27]} 36. f4 {[%clk 0:01:11]}  Kxb2 {[%clk 0:00:27]} 37. Kd3 {[%clk 0:01:12]}  Kxa3 {[%clk 0:00:26]} 38. f5 {[%clk 0:01:12]}  b5 {[%clk 0:00:24]} 39. f6 {[%clk 0:01:13]}  c4+ {[%clk 0:00:25]} 40. Kc2 {[%clk 0:01:12]}  b4 {[%clk 0:00:24]} 41. cxb4 {[%clk 0:01:13]}  Kxb4 {[%clk 0:00:24]} 42. f7 {[%clk 0:01:14]} 1-0


[Site "https://www.chess.com"]

[Event "Titled Tuesday Blitz December 06 Early 2022"]
[White "Papasimakopoulos, Alexandros"]
[Black "Sadhwani, Raunak"]
[WhiteFideId "4244125"]
[BlackFideId "35093487"]
[WhiteElo "2384"]
[BlackElo "2657"]
[Result "0-1"]
[Round "03"]
[TimeControl "180+1"]
[Date "2022.12.06"]
[WhiteClock "0:00:05"]
[BlackClock "0:00:04"]

1. d4 {[%clk 0:02:44]}  Nf6 {[%clk 0:02:58]} 2. c4 {[%clk 0:02:44]}  g6 {[%clk 0:02:58]} 3. Nc3 {[%clk 0:02:44]}  Bg7 {[%clk 0:02:57]} 4. Bg5 {[%clk 0:02:45]}  O-O {[%clk 0:02:57]} 5. e3 {[%clk 0:02:45]}  d6 {[%clk 0:02:56]} 6. Be2 {[%clk 0:02:45]}  Nbd7 {[%clk 0:02:56]} 7. Nf3 {[%clk 0:02:45]}  e5 {[%clk 0:02:55]} 8. dxe5 {[%clk 0:02:45]}  dxe5 {[%clk 0:02:56]} 9. Nd2 {[%clk 0:02:45]}  h6 {[%clk 0:02:55]} 10. Bh4 {[%clk 0:02:44]}  c6 {[%clk 0:02:55]} 11. O-O {[%clk 0:02:44]}  Qc7 {[%clk 0:02:36]} 12. Bg3 {[%clk 0:02:41]}  Rd8 {[%clk 0:02:16]} 13. Qc2 {[%clk 0:02:38]}  Nc5 {[%clk 0:02:13]} 14. b4 {[%clk 0:02:38]}  Bf5 {[%clk 0:02:11]} 15. e4 {[%clk 0:02:38]}  Rxd2 {[%clk 0:02:12]} 16. Qxd2 {[%clk 0:02:39]}  Ncxe4 {[%clk 0:02:12]} 17. Nxe4 {[%clk 0:02:39]}  Nxe4 {[%clk 0:02:13]} 18. Qe3 {[%clk 0:02:36]}  a5 {[%clk 0:02:06]} 19. a3 {[%clk 0:02:33]}  Qe7 {[%clk 0:02:01]} 20. c5 {[%clk 0:02:30]}  h5 {[%clk 0:01:58]} 21. Bf3 {[%clk 0:02:05]}  Ng5 {[%clk 0:01:51]} 22. Be2 {[%clk 0:01:50]}  Ne4 {[%clk 0:01:41]} 23. Bf3 {[%clk 0:01:50]}  Nxg3 {[%clk 0:01:03]} 24. hxg3 {[%clk 0:01:50]}  e4 {[%clk 0:01:04]} 25. Rae1 {[%clk 0:01:49]}  Re8 {[%clk 0:01:04]} 26. Be2 {[%clk 0:01:47]}  Rd8 {[%clk 0:01:01]} 27. Rd1 {[%clk 0:01:46]}  Re8 {[%clk 0:00:58]} 28. Rd2 {[%clk 0:01:45]}  Kh7 {[%clk 0:00:57]} 29. Rd6 {[%clk 0:01:22]}  axb4 {[%clk 0:00:35]} 30. axb4 {[%clk 0:01:22]}  Bh6 {[%clk 0:00:31]} 31. Qd4 {[%clk 0:01:21]}  Bg7 {[%clk 0:00:28]} 32. Qe3 {[%clk 0:01:17]}  Bh6 {[%clk 0:00:28]} 33. Qb3 {[%clk 0:01:15]}  e3 {[%clk 0:00:27]} 34. f4 {[%clk 0:01:13]}  Bg7 {[%clk 0:00:21]} 35. Rfd1 {[%clk 0:01:08]}  Ra8 {[%clk 0:00:15]} 36. b5 {[%clk 0:01:06]}  cxb5 {[%clk 0:00:13]} 37. Qxb5 {[%clk 0:01:04]}  Ra2 {[%clk 0:00:12]} 38. Kf1 {[%clk 0:00:50]}  h4 {[%clk 0:00:09]} 39. g4 {[%clk 0:00:50]}  Be4 {[%clk 0:00:09]} 40. Qc4 {[%clk 0:00:44]}  h3 {[%clk 0:00:08]} 41. Kg1 {[%clk 0:00:11]}  Qh4 {[%clk 0:00:07]} 42. Rf1 {[%clk 0:00:07]}  Bxg2 {[%clk 0:00:03]} 43. Qxa2 {[%clk 0:00:05]}  Qg3 {[%clk 0:00:04]} 0-1


[Site "https://www.chess.com"]

[Event "Titled Tuesday Blitz December 06 Early 2022"]
[White "Papp, Levente"]
[Black "Nugumanov, Bakhtiyar"]
[WhiteFideId "751243"]
[BlackFideId "13701797"]
[WhiteElo "2380"]
[BlackElo "2287"]
[Result "1-0"]
[Round "03"]
[TimeControl "180+1"]
[Date "2022.12.07"]
[WhiteClock "0:00:10"]
[BlackClock "0:00:02"]

1. d4 {[%clk 0:03:00]}  Nf6 {[%clk 0:02:58]} 2. Nc3 {[%clk 0:03:00]}  d5 {[%clk 0:02:56]} 3. Bf4 {[%clk 0:02:59]}  e6 {[%clk 0:02:55]} 4. Nf3 {[%clk 0:02:58]}  Bd6 {[%clk 0:02:53]} 5. Ne5 {[%clk 0:02:56]}  Nbd7 {[%clk 0:02:52]} 6. e3 {[%clk 0:02:54]}  a6 {[%clk 0:02:48]} 7. Bd3 {[%clk 0:02:40]}  Qe7 {[%clk 0:02:42]} 8. g4 {[%clk 0:02:35]}  h6 {[%clk 0:02:40]} 9. h4 {[%clk 0:02:30]}  c5 {[%clk 0:02:38]} 10. Qf3 {[%clk 0:02:22]}  c4 {[%clk 0:02:22]} 11. Be2 {[%clk 0:02:19]}  h5 {[%clk 0:02:17]} 12. g5 {[%clk 0:01:57]}  Bxe5 {[%clk 0:02:16]} 13. dxe5 {[%clk 0:01:52]}  Ng4 {[%clk 0:02:15]} 14. Qg3 {[%clk 0:01:50]}  Qc5 {[%clk 0:02:02]} 15. Bxg4 {[%clk 0:01:40]}  hxg4 {[%clk 0:02:03]} 16. Qxg4 {[%clk 0:01:36]}  g6 {[%clk 0:01:49]} 17. O-O-O {[%clk 0:01:31]}  b5 {[%clk 0:01:49]} 18. h5 {[%clk 0:01:30]}  gxh5 {[%clk 0:01:43]} 19. Rxh5 {[%clk 0:01:30]}  Rxh5 {[%clk 0:01:35]} 20. Qxh5 {[%clk 0:01:29]}  Nf8 {[%clk 0:01:35]} 21. Qe2 {[%clk 0:00:42]}  b4 {[%clk 0:01:31]} 22. Nb1 {[%clk 0:00:38]}  Bd7 {[%clk 0:01:28]} 23. e4 {[%clk 0:00:35]}  Bc6 {[%clk 0:01:23]} 24. exd5 {[%clk 0:00:32]}  Bxd5 {[%clk 0:01:24]} 25. Qe3 {[%clk 0:00:27]}  Qc6 {[%clk 0:01:20]} 26. Qd4 {[%clk 0:00:23]}  Ng6 {[%clk 0:01:17]} 27. Be3 {[%clk 0:00:23]}  a5 {[%clk 0:01:14]} 28. f4 {[%clk 0:00:23]}  Ne7 {[%clk 0:01:12]} 29. Qc5 {[%clk 0:00:18]}  Nf5 {[%clk 0:01:09]} 30. Qxc6+ {[%clk 0:00:16]}  Bxc6 {[%clk 0:01:09]} 31. Bb6 {[%clk 0:00:16]}  a4 {[%clk 0:01:06]} 32. a3 {[%clk 0:00:14]}  b3 {[%clk 0:01:01]} 33. cxb3 {[%clk 0:00:14]}  cxb3 {[%clk 0:00:59]} 34. Nc3 {[%clk 0:00:15]}  Rb8 {[%clk 0:00:57]} 35. Bc5 {[%clk 0:00:14]}  Nh4 {[%clk 0:00:39]} 36. Rd3 {[%clk 0:00:11]}  Ng6 {[%clk 0:00:36]} 37. Rh3 {[%clk 0:00:10]}  Rc8 {[%clk 0:00:07]} 38. Be3 {[%clk 0:00:10]}  Bd5 {[%clk 0:00:02]} 39. Rh2 {[%clk 0:00:10]} 1-0


[Site "https://www.chess.com"]